bitfinex/quotes_SOLUSD_20250607
["timestamp","ask_amount","ask_price","bid_price","bid_amount"]
[1749305143989,7.96296725,152.06,152.03,16.99763058]
[1749305144164,12.84651868,152.06,152.03,16.99763058]
[1749305144477,4.88355143,152.05,152.03,16.99763058]
[1749305144677,7.96296725,152.06,152.03,16.99763058]
[1749305144876,18.64964886,152.07,152.03,24.96059783]
[1749305145082,4.90503185,152.06,152.03,24.96059783]
[1749305145289,4.90503185,152.06,152.03,18.38296725]
[1749305145479,4.90503185,152.05,152.03,18.38296725]
[1749305146076,4.90503185,152.06,152.03,18.38296725]
[1749305146372,4.90503185,152.05,152.03,18.38296725]
[1749305146561,25.22564568,152.07,152.03,18.38296725]
[1749305146762,4.90684883,152.06,152.03,18.38296725]
[1749305146963,4.90684883,152.05,152.03,18.38296725]
[1749305147162,25.22564568,152.07,152.03,18.38296725]
[1749305147391,4.90703286,152.06,152.03,18.38296725]
[1749305147689,4.90703286,152.05,152.03,18.38296725]
[1749305147895,25.22564568,152.07,152.03,18.38296725]
[1749305148087,4.90696588,152.06,152.03,18.38296725]
[1749305148389,4.90696588,152.05,152.03,18.38296725]
[1749305148590,4.90696588,152.04,152.03,18.38296725]
[1749305148792,4.90696588,152.06,152.03,18.38296725]
[1749305149083,25.22564568,152.07,152.03,10.42]
[1749305149084,4.90696588,152.05,152.03,10.42]
[1749305149290,4.90696588,152.04,152.03,10.42]
[1749305156487,23.55661474,152.04,152.03,10.42]
[1749305157881,4.90696588,152.04,152.03,10.42]
[1749305159178,4.90696588,152.04,152.03,16.99764914]
[1749305160477,4.90696588,152.04,152.03,22.07496509]
[1749305164005,4.90696588,152.04,152.03,16.99764914]
[1749305164996,4.90696588,152.04,152.03,22.07496509]
[1749305168506,18.64964886,152.08,152.03,38.51908796]
[1749305168681,4.92508945,152.07,152.05,5.07731595]
[1749305168883,4.92508945,152.06,152.05,45.41731595]
[1749305170012,4.92508945,152.06,152.03,10.42]
[1749305170181,4.92508945,152.05,152.03,50.76]
[1749305170377,4.92508945,152.04,152.03,50.76]
[1749305170581,4.92508945,152.04,152.03,57.33764914]
[1749305170777,4.92508945,152.04,152.03,16.99764914]
[1749305171414,4.92508945,152.04,152.03,10.42]
[1749305173411,4.92508945,152.04,152.03,16.99764914]
[1749305174589,4.92508945,152.04,152.03,10.42]
[1749305180596,23.57473831,152.04,152.03,10.42]
[1749305180912,30.15195483,152.04,152.03,10.42]
[1749305181787,23.57473831,152.04,152.03,10.42]
[1749305185917,18.64964886,152.04,152.03,10.42]
[1749305186109,23.56782585,152.04,152.03,10.42]
[1749305187094,4.91817699,152.04,152.03,22.07496509]
[1749305189834,18.64964886,152.07,152.03,22.07496509]
[1749305190133,4.91856878,152.06,152.03,22.07496509]
[1749305190304,4.91856878,152.05,152.03,22.07496509]
[1749305190506,4.91856878,152.04,152.03,22.07496509]
[1749305191106,18.64964886,152.07,152.03,22.07496509]
[1749305191415,4.9189759,152.06,152.03,22.07496509]
[1749305191628,4.9189759,152.05,152.03,22.07496509]
[1749305191820,4.9189759,152.04,152.03,22.07496509]
[1749305193615,18.64964886,152.07,152.03,22.07496509]
[1749305193806,4.9189214,152.06,152.03,22.07496509]
[1749305194005,4.9189214,152.05,152.03,22.07496509]
[1749305194305,18.64964886,152.07,152.03,22.07496509]
[1749305194606,4.91874281,152.06,152.03,22.07496509]
[1749305194804,18.64964886,152.07,152.03,22.07496509]
[1749305194805,4.91874281,152.05,152.03,22.07496509]
[1749305195021,18.64964886,152.07,152.03,22.07496509]
[1749305195221,4.91859963,152.06,152.03,22.07496509]
[1749305195433,4.91859963,152.05,152.03,22.07496509]
[1749305195614,6.5,152.06,152.03,22.07496509]
[1749305195815,4.91847281,152.05,152.03,22.07496509]
[1749305196006,18.64964886,152.07,152.03,22.07496509]
[1749305196208,4.91857523,152.06,152.03,22.07496509]
[1749305196406,4.91857523,152.05,152.03,22.07496509]
[1749305196629,18.64964886,152.07,152.03,22.07496509]
[1749305196931,4.91845309,152.06,152.03,22.07496509]
[1749305197134,4.91845309,152.05,152.03,22.07496509]
[1749305197332,18.64964886,152.07,152.03,22.07496509]
[1749305197521,4.91819422,152.06,152.03,22.07496509]
[1749305197721,4.91819422,152.05,152.03,22.07496509]
[1749305197925,18.64964886,152.07,152.03,22.07496509]
[1749305198130,4.91823555,152.06,152.03,22.07496509]
[1749305198322,4.91823555,152.05,152.03,22.07496509]
[1749305198620,18.64964886,152.07,152.03,22.07496509]
[1749305198825,4.91815463,152.06,152.03,22.07496509]
[1749305199020,4.91815463,152.05,152.03,22.07496509]
[1749305199236,18.64964886,152.07,152.03,22.07496509]
[1749305199441,4.9180127,152.06,152.03,22.07496509]
[1749305199613,4.9180127,152.05,152.03,22.07496509]
[1749305199906,18.64964886,152.07,152.03,22.07496509]
[1749305200106,4.9178971,152.06,152.03,22.07496509]
[1749305200310,4.9178971,152.05,152.03,22.07496509]
[1749305200536,6.5,152.06,152.03,22.07496509]
[1749305200736,4.91804912,152.05,152.03,22.07496509]
[1749305200942,18.64964886,152.07,152.03,22.07496509]
[1749305201130,4.91800628,152.06,152.04,10.56]
[1749305201333,4.91800628,152.05,152.04,10.56]
[1749305203355,4.91800628,152.05,152.04,17.13721652]
[1749305206558,4.91800628,152.05,152.04,22.21453247]
[1749305208375,4.91800628,152.05,152.04,62.55453247]
[1749305211448,18.64964886,152.08,152.04,62.55453247]
[1749305211624,23.72696481,152.06,152.02,11.65539778]
[1749305211829,9.99525166,152.05,152.03,10.54]
[1749305212025,4.91793571,152.04,152.03,10.54]
[1749305223136,28.64490052,152.04,152.03,10.54]
[1749305223661,35.14490052,152.04,152.03,10.54]
[1749305223959,28.64490052,152.04,152.03,10.54]
[1749305224173,23.56758457,152.04,152.03,10.54]
[1749305225658,4.91793571,152.04,152.03,17.11764914]
[1749305227135,4.91793571,152.04,152.03,10.54]
[1749305232751,9.41793571,152.04,152.03,10.54]
[1749305233346,28.06758457,152.04,152.03,10.54]
[1749305237189,9.41793571,152.04,152.03,10.54]
[1749305237475,4.91793571,152.04,152.03,10.54]
[1749305237979,4.91793571,152.04,152.03,17.11764914]
[1749305239162,4.91793571,152.04,152.03,10.54]
[1749305240571,5.41793571,152.04,152.03,10.54]
[1749305246987,5.41793571,152.04,152.03,17.11764914]
[1749305247467,5.41793571,152.04,152.03,10.54]
[1749305247973,4.91793571,152.04,152.03,10.54]
[1749305250091,4.91793571,152.04,152.02,11.65523263]
[1749305250092,4.91793571,152.04,152.02,22.09523263]
[1749305250278,4.91793571,152.03,152.02,22.09523263]
[1749305250996,9.99525166,152.03,151.95,37.9]
[1749305251194,18.64964886,151.99,151.96,5.07731595]
[1749305251495,4.91793571,151.98,151.95,53.41731595]
[1749305251682,4.91793571,151.97,151.95,53.41731595]
[1749305251877,18.64964886,151.99,151.95,53.41731595]
[1749305252182,4.90555893,151.98,151.95,53.41731595]
[1749305252379,4.90555893,151.98,151.95,48.34]
[1749305252380,18.64964886,151.96,151.95,48.34]
[1749305252681,23.55520779,151.96,151.95,48.34]
[1749305253272,23.55520779,151.96,151.95,10.44]
[1749305253875,28.05520779,151.96,151.95,10.44]
[1749305255192,23.14964886,151.96,151.95,10.44]
[1749305255380,28.05520779,151.96,151.95,10.44]
[1749305255574,23.14964886,151.96,151.95,10.44]
[1749305255773,28.05520779,151.96,151.95,10.44]
[1749305255973,23.14964886,151.96,151.95,10.44]
[1749305256173,28.05520779,151.96,151.95,10.44]
[1749305256998,23.55520779,151.96,151.95,10.44]
[1749305257876,18.64964886,151.96,151.95,10.44]
[1749305258793,25.14964886,151.96,151.95,10.44]
[1749305258994,18.64964886,151.96,151.95,10.44]
[1749305259299,35.21285708,151.97,151.95,10.44]
[1749305259471,30.30729815,151.97,151.95,10.44]
[1749305259671,5.07731595,151.96,151.95,10.44]
[1749305261200,11.65799507,151.96,151.95,10.44]
[1749305261778,11.65799507,151.96,151.91,10.44]
[1749305261982,5.07731595,151.94,151.91,10.44]
[1749305263184,5.07731595,151.95,151.91,17.02276403]
[1749305263397,18.64964886,151.96,151.93,5.07731595]
[1749305263978,6.5,151.95,151.93,5.07731595]
[1749305264179,18.64964886,151.96,151.93,5.07731595]
[1749305265107,5.07731595,151.94,151.91,10.44]
[1749305265318,23.72696481,151.92,151.91,10.44]
[1749305266010,18.64964886,151.92,151.91,10.44]
[1749305268680,6.58084511,151.96,151.91,10.44]
[1749305268886,18.64964886,151.94,151.92,5.07731595]
[1749305269309,18.64964886,151.94,151.92,14.52653709]
[1749305269602,18.64964886,151.94,151.92,6.58221691]
[1749305275722,18.64964886,151.94,151.91,24.96701092]
[1749305285121,18.64964886,151.94,151.91,23.96701092]
[1749305289235,44.64964886,151.92,151.75,39.32537427]
[1749305289412,5.08714514,151.89,151.84,5.08714514]
[1749305289607,49.55520779,151.92,151.88,5.08714514]
[1749305289608,4.90555893,151.9,151.88,5.08714514]
[1749305289827,18.64964886,151.91,151.89,5.08714514]
[1749305292028,18.64964886,151.91,151.88,5.08714514]
[1749305293452,25.23266851,151.91,151.88,5.08714514]
[1749305293749,30.13822744,151.91,151.87,5.08714514]
[1749305293945,23.55520779,151.91,151.87,5.08714514]
[1749305294739,4.90555893,151.9,151.88,5.08714514]
[1749305295621,4.90555893,151.89,151.88,5.08714514]
[1749305295820,4.90555893,151.9,151.88,5.08714514]
[1749305296046,4.90555893,151.89,151.88,5.08714514]
[1749305296248,18.64964886,151.91,151.88,4.58714514]
[1749305296417,4.89640511,151.9,151.88,4.58714514]
[1749305296623,4.89640511,151.89,151.88,4.58714514]
[1749305296824,4.89640511,151.9,151.88,4.58714514]
[1749305297030,4.89640511,151.89,151.88,4.58714514]
[1749305297551,4.89640511,151.9,151.88,4.58714514]
[1749305297854,4.89640511,151.89,151.88,4.58714514]
[1749305298026,4.89640511,151.9,151.88,4.58714514]
[1749305298225,4.89640511,151.89,151.88,4.58714514]
[1749305298547,4.89640511,151.9,151.88,4.58714514]
[1749305298734,4.89640511,151.89,151.88,4.58714514]
[1749305298945,4.89640511,151.9,151.88,4.58714514]
[1749305299243,4.89674212,151.9,151.88,4.58714514]
[1749305299634,18.64964886,151.91,151.88,4.58714514]
[1749305299846,4.89627402,151.9,151.88,4.58714514]
[1749305300041,18.64964886,151.91,151.88,4.58714514]
[1749305300235,4.89650009,151.9,151.88,4.58714514]
[1749305300753,4.89667166,151.9,151.88,4.58714514]
[1749305301416,4.89667166,151.9,151.87,11.67169555]
[1749305301625,4.89667166,151.89,151.87,11.67169555]
[1749305301847,18.64964886,151.91,151.87,11.67169555]
[1749305301848,4.89667166,151.9,151.87,11.67169555]
[1749305302023,4.89667166,151.89,151.87,11.67169555]
[1749305302551,4.89667166,151.9,151.87,11.67169555]
[1749305302748,4.89667166,151.89,151.87,11.67169555]
[1749305303039,4.89667166,151.9,151.87,11.67169555]
[1749305303347,18.64964886,151.91,151.88,5.08714514]
[1749305303553,18.64964886,151.94,151.9,5.08714514]
[1749305303734,4.8975862,151.93,151.91,5.08714514]
[1749305304054,4.8975862,151.93,151.89,50.76]
[1749305304055,4.8975862,151.92,151.89,50.76]
[1749305304361,23.54723506,151.94,151.89,50.76]
[1749305304556,4.8975862,151.93,151.89,50.76]
[1749305304860,4.8975862,151.92,151.89,50.76]
[1749305305041,4.8975862,151.93,151.91,5.08714514]
[1749305305239,4.8975862,151.92,151.91,5.08714514]
[1749305305544,4.8975862,151.93,151.91,5.08714514]
[1749305305733,4.8975862,151.92,151.91,5.08714514]
[1749305305925,4.8975862,151.93,151.91,11.66999024]
[1749305306126,4.8975862,151.92,151.91,11.66999024]
[1749305306342,4.8975862,151.93,151.91,11.66999024]
[1749305306647,4.8975862,151.92,151.91,11.66999024]
[1749305306850,4.8975862,151.93,151.91,5.08714514]
[1749305307028,4.8975862,151.92,151.91,5.08714514]
[1749305307226,4.8975862,151.93,151.91,5.08714514]
[1749305307427,4.8975862,151.92,151.91,11.66999024]
[1749305308037,4.8975862,151.93,151.91,5.08714514]
[1749305308350,4.89875256,151.93,151.91,5.08714514]
[1749305308553,18.64964886,151.94,151.91,5.08714514]
[1749305308748,11.66792333,151.96,151.91,11.66993561]
[1749305308749,4.89866861,151.93,151.91,11.66993561]
[1749305308935,11.66792333,151.96,151.91,11.66993561]
[1749305308936,4.89866861,151.95,151.92,5.08714514]
[1749305309136,4.89866861,151.94,151.93,5.08714514]
[1749305309336,4.89866861,151.95,151.93,5.08714514]
[1749305309543,4.89866861,151.97,151.94,5.08714514]
[1749305309725,4.89866861,151.96,151.94,5.08714514]
[1749305309930,18.64964886,151.98,151.94,5.08714514]
[1749305310129,4.90010507,151.97,151.94,5.08714514]
[1749305310357,4.90010507,151.96,151.94,11.6686835]
[1749305310555,4.90010507,151.97,151.94,22.1086835]
[1749305310732,4.90010507,151.96,151.94,22.1086835]
[1749305310934,18.64964886,151.98,151.94,22.1086835]
[1749305311128,4.89865474,151.97,151.94,17.02153836]
[1749305311439,4.89865474,151.96,151.94,24.96309989]
[1749305311747,18.64964886,151.98,151.94,24.96309989]
[1749305312061,4.8981266,151.97,151.94,24.96309989]
[1749305312233,4.8981266,151.96,151.94,24.96309989]
[1749305312552,6.5,151.97,151.94,24.96309989]
[1749305312868,4.89772422,151.96,151.94,24.96309989]
[1749305313166,4.89772422,151.97,151.94,24.96309989]
[1749305313336,4.89772422,151.96,151.94,24.96309989]
[1749305313531,4.89772422,151.97,151.95,7.94156153]
[1749305313734,4.89772422,151.99,151.96,7.94156153]
[1749305313938,4.89708036,151.98,151.97,7.94156153]
[1749305314144,4.89708036,151.99,151.97,7.94156153]
[1749305315027,26.59121039,152.01,151.97,7.94156153]
[1749305315028,4.89708036,152.0,151.97,7.94156153]
[1749305315258,26.59121039,152.01,151.97,7.94156153]
[1749305315259,4.89708036,151.99,151.97,7.94156153]
[1749305315445,4.89708036,152.0,151.97,7.94156153]
[1749305315646,4.89708036,151.99,151.97,7.94156153]
[1749305315845,23.54672922,152.0,151.97,7.94156153]
[1749305316043,4.89708036,151.99,151.97,7.94156153]
[1749305316658,4.89708036,151.99,151.97,14.52171599]
[1749305317143,23.54672922,152.0,151.97,14.52171599]
[1749305317545,5.5,151.99,151.97,14.52171599]
[1749305317864,23.54672922,152.0,151.97,14.52171599]
[1749305319457,18.64964886,152.0,151.97,14.52171599]
[1749305320741,18.64964886,152.0,151.98,7.94156153]
[1749305321063,23.54672922,152.01,151.98,7.94156153]
[1749305321565,18.64964886,152.01,151.99,7.94156153]
[1749305324168,18.64964886,152.01,151.98,7.94156153]
[1749305332871,19.14964886,152.01,151.98,7.94156153]
[1749305333168,19.14964886,152.01,151.98,5.08048184]
[1749305338645,25.72826997,152.01,151.97,55.82048184]
[1749305339881,19.14964886,152.01,151.97,62.40070499]
[1749305340375,25.72821567,152.01,151.97,55.82048184]
[1749305340567,18.64964886,152.0,151.97,50.74]
[1749305340885,18.64964886,151.98,151.97,10.44]
[1749305341084,23.7301307,151.98,151.97,10.44]
[1749305341370,23.7301307,151.98,151.94,45.36048184]
[1749305341951,30.3101435,151.98,151.94,45.36048184]
[1749305343349,30.3101435,151.98,151.94,5.08048184]
[1749305343573,23.7301307,151.98,151.94,5.08048184]
[1749305343754,23.7301307,151.98,151.93,57.28181354]
[1749305343954,23.7301307,151.98,151.94,5.08048184]
[1749305344677,5.08048184,151.97,151.93,55.78048184]
[1749305344856,23.7301307,151.98,151.94,5.08048184]
[1749305345061,28.60987281,151.98,151.94,5.08048184]
[1749305345256,23.7301307,151.98,151.94,5.08048184]
[1749305345464,4.87974211,151.97,151.94,5.08048184]
[1749305346058,4.87974211,151.97,151.94,11.66166761]
[1749305347487,4.87974211,151.96,151.94,11.66166761]
[1749305347666,4.87974211,151.97,151.94,11.66166761]
[1749305347865,4.87974211,151.96,151.94,11.66166761]
[1749305348066,4.87974211,151.97,151.94,11.66166761]
[1749305348294,4.87974211,151.96,151.94,11.66166761]
[1749305348478,4.87974211,151.97,151.95,5.08048184]
[1749305348673,4.87974211,151.96,151.95,5.08048184]
[1749305348876,4.87974211,151.97,151.95,5.08048184]
[1749305349171,4.87974211,151.96,151.95,5.08048184]
[1749305349363,4.87974211,151.97,151.94,11.66166761]
[1749305349686,4.87974211,151.96,151.94,11.66166761]
[1749305349859,4.87974211,151.97,151.94,11.66166761]
[1749305350059,23.7301307,151.98,151.94,11.66166761]
[1749305350060,4.87974211,151.96,151.95,5.08048184]
[1749305350688,4.87974211,151.96,151.95,11.66159404]
[1749305356381,4.87974211,151.97,151.95,11.66159404]
[1749305356606,18.64964886,152.0,151.96,5.08048184]
[1749305356782,4.90148497,151.99,151.97,5.08048184]
[1749305356981,4.90148497,151.98,151.97,5.08048184]
[1749305357702,4.90148497,151.98,151.97,11.66072794]
[1749305358713,4.90148497,151.98,151.97,51.94072794]
[1749305362196,18.64964886,152.01,151.97,51.94072794]
[1749305362504,4.90079341,152.0,151.98,5.08048184]
[1749305362706,4.90079341,151.99,151.98,5.08048184]
[1749305367116,4.90079341,151.99,151.97,45.36048184]
[1749305367284,4.90079341,151.98,151.97,45.36048184]
[1749305367484,4.90079341,151.98,151.97,40.28]
[1749305369018,4.90079341,151.98,151.97,51.94072794]
[1749305369511,4.90079341,151.98,151.97,45.36048184]
[1749305369710,4.90079341,151.98,151.97,5.08048184]
[1749305372414,4.90079341,151.98,151.97,11.66072794]
[1749305381193,18.64964886,152.01,151.97,11.66072794]
[1749305381396,4.90501391,152.0,151.99,5.08048184]
[1749305383494,4.90501391,152.0,151.99,11.65986206]
[1749305383894,4.90501391,152.0,151.99,51.91986206]
[1749305384094,4.90501391,152.0,151.99,62.33986206]
[1749305385839,4.90501391,152.0,151.99,55.76048184]
[1749305389212,4.90501391,152.0,151.99,62.33986206]
[1749305393203,4.90501391,152.0,151.99,55.76048184]
[1749305394529,4.90501391,152.0,151.99,62.33986206]
[1749305397225,4.90501391,152.0,151.99,55.76048184]
[1749305398824,4.90501391,152.0,151.99,62.33986206]
[1749305419124,4.90501391,152.0,151.99,55.76048184]
[1749305419447,4.90501391,152.0,151.99,50.68]
[1749305420235,23.55466277,152.0,151.99,50.68]
[1749305420428,23.55466277,152.0,151.99,10.42]
[1749305422574,23.55466277,152.0,151.97,51.90061463]
[1749305422859,4.90501391,151.99,151.97,51.90061463]
[1749305423168,4.90501391,151.98,151.97,51.90061463]
[1749305426555,18.64964886,152.03,151.97,51.90061463]
[1749305426776,4.91737432,152.02,152.01,5.08048184]
[1749305426940,4.91737432,152.02,152.01,45.32048184]
[1749305431043,4.91737432,152.02,152.01,51.89899641]
[1749305435679,4.91619137,152.05,152.01,68.34528283]
[1749305435977,42.36944842,152.09,152.01,68.34528283]
[1749305435978,18.64964886,152.08,152.04,5.08048184]
[1749305436280,18.64964886,152.08,152.01,63.26480099]
[1749305436281,4.91646409,152.07,152.06,5.08048184]
[1749305436644,4.91646409,152.07,152.06,11.65683328]
[1749305438189,4.91646409,152.07,152.06,6.57635144]
[1749305438357,4.91646409,152.07,152.05,62.27713576]
[1749305438674,18.64964886,152.08,152.05,62.27713576]
[1749305438875,4.90985043,152.07,152.05,62.27713576]
[1749305439054,0.5,152.07,152.05,62.27713576]
[1749305439656,5.40834688,152.07,152.05,62.27713576]
[1749305440171,0.5,152.07,152.05,62.27713576]
[1749305440370,5.40815225,152.07,152.05,62.27713576]
[1749305442954,4.90815225,152.06,152.05,10.4]
[1749305443279,4.90815225,152.06,152.05,50.62]
[1749305443648,4.90815225,152.07,152.05,50.62]
[1749305444685,23.7301307,152.08,152.05,50.62]
[1749305444686,23.55780111,152.06,152.05,50.62]
[1749305444980,18.64964886,152.06,152.05,50.62]
[1749305445160,23.55780111,152.06,152.05,50.62]
[1749305445362,18.64964886,152.06,152.05,50.62]
[1749305445571,23.55780111,152.06,152.05,50.62]
[1749305445771,18.64964886,152.06,152.05,50.62]
[1749305446078,23.55780111,152.06,152.05,50.62]
[1749305446256,18.64964886,152.06,152.05,50.62]
[1749305446455,23.55780111,152.06,152.05,50.62]
[1749305446671,18.64964886,152.06,152.05,50.62]
[1749305446880,23.55780111,152.06,152.05,50.62]
[1749305447085,18.64964886,152.06,152.05,50.62]
[1749305447389,23.55780111,152.06,152.04,50.6]
[1749305447580,18.64964886,152.06,152.04,50.6]
[1749305447758,23.55780111,152.06,152.04,50.6]
[1749305448094,18.64964886,152.06,152.04,50.6]
[1749305448397,23.55780111,152.06,152.04,50.6]
[1749305448637,18.64964886,152.06,152.04,50.6]
[1749305448765,23.55780111,152.06,152.04,50.6]
[1749305448966,18.64964886,152.06,152.04,50.6]
[1749305449190,23.55780111,152.06,152.04,50.6]
[1749305449358,18.64964886,152.06,152.04,50.6]
[1749305449692,23.55780111,152.06,152.04,50.6]
[1749305449863,18.64964886,152.06,152.04,50.6]
[1749305451785,18.64964886,152.06,152.04,57.17708997]
[1749305451968,18.64964886,152.06,152.04,50.6]
[1749305455577,18.64964886,152.06,152.04,55.68048184]
[1749305455769,18.64964886,152.06,152.04,50.6]
[1749305455973,18.64964886,152.06,152.04,55.68048184]
[1749305460710,18.64964886,152.06,152.04,45.28048184]
[1749305463630,18.64964886,152.06,152.04,51.85768205]
[1749305464785,4.90815225,152.07,152.05,11.65708169]
[1749305465093,18.64964886,152.07,152.05,11.65708169]
[1749305465297,18.64964886,152.07,152.05,5.08048184]
[1749305465497,23.55780111,152.07,152.05,5.08048184]
[1749305465706,25.14964886,152.07,152.05,5.08048184]
[1749305465898,30.05780111,152.07,152.05,5.08048184]
[1749305466110,25.14964886,152.07,152.05,5.08048184]
[1749305466287,30.05780111,152.07,152.05,5.08048184]
[1749305466487,25.14964886,152.07,152.05,5.08048184]
[1749305466816,4.90815225,152.06,152.05,5.08048184]
[1749305471401,4.90815225,152.06,152.04,50.58]
[1749305471697,4.90815225,152.05,152.04,55.66048184]
[1749305476392,4.90815225,152.05,152.04,50.58]
[1749305479923,4.90815225,152.05,152.04,40.2]
[1749305483702,4.90815225,152.05,152.04,51.85769836]
[1749305483907,4.90815225,152.05,152.04,45.28048184]
[1749305484718,4.90815225,152.05,152.04,55.66048184]
[1749305488720,4.90815225,152.05,152.04,50.58]
[1749305499136,4.90815225,152.05,152.04,40.2]
[1749305501548,4.90815225,152.05,152.03,15.46048184]
[1749305501754,18.64964886,152.06,152.04,40.18]
[1749305501921,4.92328829,152.05,152.04,40.18]
[1749305509230,4.92014658,152.05,152.04,40.18]
[1749305514530,4.92014658,152.05,152.04,46.75721652]
[1749305515540,4.92014658,152.05,152.04,51.83769836]
[1749305515745,4.92014658,152.05,152.04,45.26048184]
[1749305517522,4.92014658,152.05,152.04,51.83769836]
[1749305518949,4.92014658,152.05,152.04,62.21769836]
[1749305530093,4.92014658,152.05,152.04,55.64048184]
[1749305530292,4.92014658,152.05,152.04,50.56]
[1749305533406,4.92014658,152.05,152.04,62.21769836]
[1749305540619,18.64964886,152.08,152.04,62.21769836]
[1749305540907,4.91813112,152.07,152.05,5.08048184]
[1749305541109,18.64964886,152.08,152.06,40.16]
[1749305541313,4.91793926,152.07,152.06,40.16]
[1749305549696,23.56758812,152.07,152.06,40.16]
[1749305557814,23.56758812,152.07,152.05,16.93672932]
[1749305558032,4.91793926,152.06,152.05,16.93672932]
[1749305558250,4.91793926,152.06,152.05,57.09672932]
[1749305558414,4.91793926,152.06,152.05,62.17721116]
[1749305560520,29.88031393,152.1,152.05,62.17721116]
[1749305560521,18.64964886,152.09,152.05,62.17721116]
[1749305560722,4.91788506,152.08,152.06,11.65667488]
[1749305560933,18.64964886,152.09,152.07,40.16]
[1749305561129,11.4177741,152.08,152.07,40.16]
[1749305561336,11.4177741,152.08,152.07,45.24048184]
[1749305561538,4.9177741,152.08,152.07,45.24048184]
[1749305562318,4.9177741,152.08,152.07,40.16]
[1749305562519,4.9177741,152.08,152.07,45.24048184]
[1749305562719,4.9177741,152.08,152.07,40.16]
[1749305562929,4.9177741,152.08,152.07,45.24048184]
[1749305569143,4.9177741,152.08,152.07,51.81640082]
[1749305572570,4.9177741,152.08,152.07,45.24048184]
[1749305573844,4.9177741,152.08,152.07,51.81640082]
[1749305574046,4.9177741,152.08,152.07,45.24048184]
[1749305576475,4.9177741,152.08,152.07,62.17640082]
[1749305582478,4.9177741,152.08,152.07,57.09591898]
[1749305582675,4.9177741,152.08,152.07,62.17640082]
[1749305584589,4.9177741,152.08,152.07,55.60048184]
[1749305586368,4.9177741,152.08,152.06,6.57616634]
[1749305586369,18.64964886,152.07,152.06,10.36]
[1749305586569,23.56742296,152.07,152.06,10.36]
[1749305586801,30.06742296,152.07,152.06,10.36]
[1749305586972,23.56742296,152.07,152.06,10.36]
[1749305589374,4.9177741,152.07,152.06,15.44048184]
[1749305591502,4.9177741,152.07,152.06,10.36]
[1749305596977,4.9132162,152.07,152.06,10.36]
[1749305600614,23.56286506,152.07,152.06,10.36]
[1749305603918,35.21926588,152.07,152.06,10.36]
[1749305604133,41.36078613,152.07,152.06,10.36]
[1749305604414,41.36078613,152.07,152.03,10.34]
[1749305604415,18.64964886,152.06,152.03,10.34]
[1749305604625,18.64964886,152.04,152.03,10.34]
[1749305604797,6.57764914,152.03,151.99,10.34]
[1749305604994,18.64964886,152.01,151.99,10.34]
[1749305605195,4.9132162,152.0,151.99,10.34]
[1749305605495,23.56286506,152.0,151.99,10.34]
[1749305606932,30.06286506,152.0,151.99,10.34]
[1749305608611,36.64181242,152.0,151.99,10.34]
[1749305609019,41.72229426,152.0,151.99,10.34]
[1749305609339,36.80907806,152.0,151.99,10.34]
[1749305609840,18.64964886,151.99,151.96,5.08048184]
[1749305610045,18.64964886,151.99,151.95,50.48]
[1749305610046,25.22914602,151.99,151.95,55.56048184]
[1749305610812,25.22914602,151.99,151.95,10.36]
[1749305610813,30.30962786,151.99,151.95,10.36]
[1749305611126,23.7301307,151.97,151.95,10.36]
[1749305611648,34.12129716,151.99,151.92,45.22048184]
[1749305611649,18.64964886,151.95,151.92,45.22048184]
[1749305612017,11.66122747,151.96,151.92,5.08048184]
[1749305612219,5.08048184,151.97,151.92,5.08048184]
[1749305612607,5.08048184,151.96,151.92,5.08048184]
[1749305614134,5.08048184,151.96,151.92,11.66278593]
[1749305625359,18.64964886,151.95,151.92,11.66278593]
[1749305629685,18.64964886,151.95,151.93,5.08048184]
[1749305630587,6.18048184,151.97,151.94,5.08048184]
[1749305630588,1.1,151.97,151.94,5.08048184]
[1749305630760,18.64964886,151.98,151.95,5.08048184]
[1749305631290,18.64964886,151.98,151.95,11.66129892]
[1749305633164,44.64964886,152.0,151.96,11.66116076]
[1749305633500,49.7301307,152.0,151.96,11.66116076]
[1749305633778,49.7301307,152.0,151.96,5.08048184]
[1749305634484,49.7301307,152.0,151.96,11.66115873]
[1749305635988,18.64964886,152.02,151.97,5.08048184]
[1749305636281,18.64964886,152.02,151.98,5.08048184]
[1749305636282,44.64964886,152.02,151.98,5.08048184]
[1749305636494,49.7301307,152.02,151.98,5.08048184]
[1749305636857,18.64964886,152.0,151.98,5.08048184]
[1749305637571,1.1,152.01,151.99,5.08048184]
[1749305637784,18.64964886,152.03,152.0,5.08048184]
[1749305637971,18.64964886,152.03,151.96,23.0323747]
[1749305638168,18.64964886,152.03,151.99,5.08048184]
[1749305638878,23.7301307,152.03,151.99,5.08048184]